[Event "*** Titled Tuesday Blitz"]
[Site "Chess.com"]
[Date "2020.10.20"]
[Round "3"]
[White "anpospan"]
[Black "11kevin"]
[Result "0-1"]
[WhiteElo "2371"]
[BlackElo "2581"]
[TimeControl "180+1"]
[EndTime "10:29:34 PDT"]
[Termination "11kevin won on time"]

1. Nf3 {[%clk 0:03:00.9]} 1... d5 {[%clk 0:02:58.9]} 2. g3 {[%clk 0:03:01.3]}
2... Nf6 {[%clk 0:02:58.6]} 3. Bg2 {[%clk 0:03:01.2]} 3... c6 {[%clk 0:02:59.1]}
4. O-O {[%clk 0:03:01.4]} 4... Bf5 {[%clk 0:02:59.4]} 5. b3 {[%clk 0:03:01.7]}
5... e6 {[%clk 0:02:59.9]} 6. Bb2 {[%clk 0:03:02.1]} 6... h6 {[%clk 0:03:00.5]}
7. d3 {[%clk 0:03:02.5]} 7... Be7 {[%clk 0:03:01.1]} 8. Nbd2 {[%clk 0:03:02.9]}
8... O-O {[%clk 0:03:01.6]} 9. Re1 {[%clk 0:03:02.5]} 9... a5 {[%clk 0:03:01.7]}
10. e4 {[%clk 0:03:02.4]} 10... Bh7 {[%clk 0:03:02.6]} 11. e5 {[%clk 0:03:01.5]}
11... Nfd7 {[%clk 0:03:02.8]} 12. a3 {[%clk 0:03:00.4]} 12... b5 {[%clk
0:03:02.5]} 13. Qe2 {[%clk 0:02:55.1]} 13... c5 {[%clk 0:03:02.4]} 14. c4 {[%clk
0:02:36.1]} 14... bxc4 {[%clk 0:03:01]} 15. bxc4 {[%clk 0:02:32.6]} 15... d4
{[%clk 0:03:00.1]} 16. Bc1 {[%clk 0:02:13.8]} 16... Ra6 {[%clk 0:02:56.7]} 17.
Ne4 {[%clk 0:02:06.6]} 17... Nc6 {[%clk 0:02:56.6]} 18. Bf4 {[%clk 0:02:02.2]}
18... a4 {[%clk 0:02:52.1]} 19. h4 {[%clk 0:01:59.3]} 19... Rb6 {[%clk
0:02:50.7]} 20. Qd2 {[%clk 0:01:57.6]} 20... Re8 {[%clk 0:02:39.4]} 21. Bxh6
{[%clk 0:01:54.2]} 21... gxh6 {[%clk 0:02:39.4]} 22. Qxh6 {[%clk 0:01:54]} 22...
Bf8 {[%clk 0:02:32.7]} 23. Qh5 {[%clk 0:01:51.7]} 23... Bg6 {[%clk 0:02:31.2]}
24. Qg4 {[%clk 0:01:32.1]} 24... Ndxe5 {[%clk 0:02:28.3]} 25. Nxe5 {[%clk
0:01:31.5]} 25... Nxe5 {[%clk 0:02:29.2]} 26. Qe2 {[%clk 0:01:26.3]} 26... Rb3
{[%clk 0:02:26]} 27. Rad1 {[%clk 0:01:20.6]} 27... Rxa3 {[%clk 0:02:17.8]} 28.
h5 {[%clk 0:01:18.4]} 28... Bf5 {[%clk 0:02:18]} 29. Bf3 {[%clk 0:00:58.2]}
29... Nxf3+ {[%clk 0:02:08.1]} 30. Qxf3 {[%clk 0:00:57.6]} 30... Bxe4 {[%clk
0:01:56.4]} 31. Rxe4 {[%clk 0:00:56.7]} 31... f5 {[%clk 0:01:56.2]} 32. Re5
{[%clk 0:00:42.6]} 32... Bd6 {[%clk 0:01:55.3]} 33. Rxf5 {[%clk 0:00:29.2]}
33... exf5 {[%clk 0:01:53.7]} 34. Qxf5 {[%clk 0:00:26.1]} 34... Re7 {[%clk
0:01:30.4]} 35. h6 {[%clk 0:00:18.5]} 35... Rh7 {[%clk 0:01:09.7]} 36. Qg6+
{[%clk 0:00:09.6]} 36... Kh8 {[%clk 0:01:09.1]} 37. Re1 {[%clk 0:00:09.8]} 37...
Be7 {[%clk 0:01:03.4]} 38. Re5 {[%clk 0:00:05.2]} 38... Ra1+ {[%clk 0:00:51.2]}
39. Kg2 {[%clk 0:00:04.9]} 39... Rb1 {[%clk 0:00:40.6]} 40. Qg4 {[%clk
0:00:04.6]} 40... Qa8+ {[%clk 0:00:30.1]} 41. Rd5 {[%clk 0:00:04.2]} 41... Rb8
{[%clk 0:00:23.3]} 42. Qe6 {[%clk 0:00:03.4]} 42... Rf8 {[%clk 0:00:20.6]} 43.
Qe5+ {[%clk 0:00:03.1]} 43... Bf6 {[%clk 0:00:20.8]} 44. Qe6 {[%clk 0:00:02.8]}
44... a3 {[%clk 0:00:21]} 45. f3 {[%clk 0:00:01.2]} 45... a2 {[%clk 0:00:21]}
46. Rd7 {[%clk 0:00:01.3]} 46... Rxd7 {[%clk 0:00:17.5]} 0-1

[Event "*** Titled Tuesday Blitz"]
[Site "Chess.com"]
[Date "2020.10.20"]
[Round "3"]
[White "XDPS"]
[Black "KarstenHansch"]
[Result "0-1"]
[WhiteElo "2708"]
[BlackElo "2489"]
[TimeControl "180+1"]
[EndTime "10:29:35 PDT"]
[Termination "KarstenHansch won by resignation"]

1. e4 {[%clk 0:03:00.9]} 1... c6 {[%clk 0:02:59.9]} 2. Nf3 {[%clk 0:03:00.8]}
2... d5 {[%clk 0:03:00.8]} 3. Nc3 {[%clk 0:03:01.3]} 3... dxe4 {[%clk
0:03:00.6]} 4. Nxe4 {[%clk 0:03:02.2]} 4... Nf6 {[%clk 0:03:01.4]} 5. Qe2 {[%clk
0:03:02.8]} 5... Nxe4 {[%clk 0:02:59.4]} 6. Qxe4 {[%clk 0:03:03.7]} 6... Qd5
{[%clk 0:02:58.3]} 7. Qf4 {[%clk 0:03:03.8]} 7... Qf5 {[%clk 0:02:58.5]} 8. Qc7
{[%clk 0:02:57]} 8... Qe6+ {[%clk 0:02:33.2]} 9. Be2 {[%clk 0:02:53.8]} 9... Na6
{[%clk 0:02:33.4]} 10. Qf4 {[%clk 0:02:53.4]} 10... Qf5 {[%clk 0:02:31.7]} 11.
Qg3 {[%clk 0:02:46.2]} 11... Qxc2 {[%clk 0:02:29.9]} 12. O-O {[%clk 0:02:46.2]}
12... Qg6 {[%clk 0:02:26.2]} 13. Qe5 {[%clk 0:02:31.6]} 13... Qd6 {[%clk
0:02:24.5]} 14. Qc3 {[%clk 0:02:28]} 14... Nc7 {[%clk 0:02:23.8]} 15. d4 {[%clk
0:02:27.3]} 15... Nd5 {[%clk 0:02:23.9]} 16. Qb3 {[%clk 0:02:25.7]} 16... g6
{[%clk 0:02:21.5]} 17. Ne5 {[%clk 0:02:00.4]} 17... Bg7 {[%clk 0:02:15.2]} 18.
Bf3 {[%clk 0:01:58.9]} 18... O-O {[%clk 0:02:11.4]} 19. Re1 {[%clk 0:01:58.8]}
19... Qb4 {[%clk 0:01:59.5]} 20. Qd1 {[%clk 0:01:56.8]} 20... Be6 {[%clk
0:01:52.8]} 21. a3 {[%clk 0:01:56.5]} 21... Qb6 {[%clk 0:01:42.8]} 22. h4 {[%clk
0:01:22.9]} 22... Rad8 {[%clk 0:01:30.4]} 23. h5 {[%clk 0:01:22.4]} 23... Nc7
{[%clk 0:01:29.7]} 24. hxg6 {[%clk 0:01:20.8]} 24... hxg6 {[%clk 0:01:28]} 25.
Qc2 {[%clk 0:01:06.1]} 25... Qxd4 {[%clk 0:01:17.8]} 26. Re4 {[%clk 0:00:49.7]}
26... Bf5 {[%clk 0:00:58.4]} 27. Rxd4 {[%clk 0:00:49.6]} 27... Bxc2 {[%clk
0:00:58.1]} 28. Rxd8 {[%clk 0:00:50.2]} 28... Rxd8 {[%clk 0:00:58.2]} 29. Bf4
{[%clk 0:00:49.1]} 29... Ne6 {[%clk 0:00:53.3]} 30. Bg3 {[%clk 0:00:48.1]} 30...
Nd4 {[%clk 0:00:47.2]} 31. Rc1 {[%clk 0:00:16.5]} 31... Nxf3+ {[%clk 0:00:35.1]}
32. gxf3 {[%clk 0:00:17.4]} 32... Rd1+ {[%clk 0:00:34.6]} 33. Rxd1 {[%clk
0:00:17.9]} 33... Bxd1 {[%clk 0:00:35.5]} 34. Kg2 {[%clk 0:00:18.8]} 34... Bxe5
{[%clk 0:00:25.1]} 35. Bxe5 {[%clk 0:00:18.7]} 35... f6 {[%clk 0:00:25.6]} 36.
Bd4 {[%clk 0:00:18.8]} 36... b6 {[%clk 0:00:25.1]} 37. Bc3 {[%clk 0:00:18.5]}
37... Kf7 {[%clk 0:00:25.3]} 38. f4 {[%clk 0:00:18.5]} 38... Ke6 {[%clk
0:00:25.1]} 39. Kg3 {[%clk 0:00:19]} 39... Kd5 {[%clk 0:00:25]} 40. Bd2 {[%clk
0:00:19.1]} 40... Ke4 {[%clk 0:00:24.4]} 41. Bc3 {[%clk 0:00:19.2]} 41... c5
{[%clk 0:00:22.1]} 42. Bd2 {[%clk 0:00:19.2]} 42... b5 {[%clk 0:00:22]} 43. Ba5
{[%clk 0:00:19]} 43... f5 {[%clk 0:00:19.2]} 44. Bd8 {[%clk 0:00:18.8]} 44... e6
{[%clk 0:00:19.7]} 45. Be7 {[%clk 0:00:19.3]} 45... c4 {[%clk 0:00:19.6]} 46.
Bb4 {[%clk 0:00:19.6]} 46... Kd3 {[%clk 0:00:19.5]} 47. Bc3 {[%clk 0:00:20]}
47... Kc2 {[%clk 0:00:19.9]} 48. Kh4 {[%clk 0:00:18.8]} 48... a5 {[%clk
0:00:20.3]} 49. Kg5 {[%clk 0:00:17.8]} 49... b4 {[%clk 0:00:20.6]} 50. axb4
{[%clk 0:00:18.5]} 50... axb4 {[%clk 0:00:20.9]} 51. Bxb4 {[%clk 0:00:19.1]}
51... Kxb2 {[%clk 0:00:21.2]} 52. Kxg6 {[%clk 0:00:19.6]} 52... c3 {[%clk
0:00:21.7]} 53. Kf6 {[%clk 0:00:20.2]} 53... Bb3 {[%clk 0:00:21.9]} 54. Ke5
{[%clk 0:00:18.8]} 54... c2 {[%clk 0:00:22.3]} 55. Bd2 {[%clk 0:00:19.3]} 55...
c1=Q {[%clk 0:00:22.7]} 56. Bxc1+ {[%clk 0:00:20]} 56... Kxc1 {[%clk 0:00:23.6]}
0-1

[Event "*** Titled Tuesday Blitz"]
[Site "Chess.com"]
[Date "2020.10.20"]
[Round "3"]
[White "brunomorado"]
[Black "Fh2411"]
[Result "1/2-1/2"]
[WhiteElo "2317"]
[BlackElo "2511"]
[TimeControl "180+1"]
[EndTime "10:29:35 PDT"]
[Termination "Game drawn - insufficient material"]

1. d4 {[%clk 0:02:58.4]} 1... d5 {[%clk 0:02:59.9]} 2. Nc3 {[%clk 0:02:57.8]}
2... c6 {[%clk 0:03:00.8]} 3. e4 {[%clk 0:02:57.6]} 3... dxe4 {[%clk 0:03:01.7]}
4. Nxe4 {[%clk 0:02:58.5]} 4... Nf6 {[%clk 0:03:01.4]} 5. Ng5 {[%clk 0:02:58.3]}
5... h6 {[%clk 0:02:58.7]} 6. N5f3 {[%clk 0:02:58.3]} 6... Bf5 {[%clk
0:02:56.9]} 7. Bc4 {[%clk 0:02:58.2]} 7... e6 {[%clk 0:02:56.4]} 8. Ne2 {[%clk
0:02:58.6]} 8... Nbd7 {[%clk 0:02:56.2]} 9. Ng3 {[%clk 0:02:58.6]} 9... Bh7
{[%clk 0:02:55.5]} 10. Qe2 {[%clk 0:02:54.1]} 10... Be7 {[%clk 0:02:46.9]} 11.
Ne5 {[%clk 0:02:40.1]} 11... Nxe5 {[%clk 0:02:02.4]} 12. dxe5 {[%clk 0:02:41]}
12... Nd7 {[%clk 0:02:02.4]} 13. O-O {[%clk 0:02:25.1]} 13... Qa5 {[%clk
0:01:23.2]} 14. Re1 {[%clk 0:02:12]} 14... Bg6 {[%clk 0:00:38.3]} 15. Bd2 {[%clk
0:02:06.3]} 15... Bb4 {[%clk 0:00:26.1]} 16. Bxb4 {[%clk 0:01:59.6]} 16... Qxb4
{[%clk 0:00:27]} 17. c3 {[%clk 0:02:00.2]} 17... Qe7 {[%clk 0:00:23.5]} 18. Ne4
{[%clk 0:01:58]} 18... O-O {[%clk 0:00:22.7]} 19. Nd6 {[%clk 0:01:54.3]} 19...
Nb6 {[%clk 0:00:20.6]} 20. Bd3 {[%clk 0:01:53.4]} 20... Bxd3 {[%clk 0:00:19.8]}
21. Qxd3 {[%clk 0:01:54.3]} 21... Rfd8 {[%clk 0:00:20.2]} 22. c4 {[%clk
0:01:52.3]} 22... c5 {[%clk 0:00:16.3]} 23. Rad1 {[%clk 0:01:40.3]} 23... Nc8
{[%clk 0:00:06.8]} 24. Qg3 {[%clk 0:01:36.3]} 24... Nxd6 {[%clk 0:00:06.3]} 25.
exd6 {[%clk 0:01:37.2]} 25... Qf6 {[%clk 0:00:06.4]} 26. Re5 {[%clk 0:01:30.6]}
26... b6 {[%clk 0:00:06.4]} 27. f4 {[%clk 0:01:27.2]} 27... Rd7 {[%clk
0:00:05.8]} 28. Re2 {[%clk 0:01:09.5]} 28... Rad8 {[%clk 0:00:05.6]} 29. Red2
{[%clk 0:01:09.9]} 29... Qf5 {[%clk 0:00:05.2]} 30. Qe3 {[%clk 0:01:07.2]} 30...
f6 {[%clk 0:00:02.8]} 31. g3 {[%clk 0:01:05.9]} 31... Kf7 {[%clk 0:00:02.8]} 32.
Qf3 {[%clk 0:00:58.6]} 32... e5 {[%clk 0:00:02.9]} 33. Qd5+ {[%clk 0:00:57.4]}
33... Qe6 {[%clk 0:00:03.6]} 34. fxe5 {[%clk 0:00:57.3]} 34... Qxd5 {[%clk
0:00:03.7]} 35. Rxd5 {[%clk 0:00:57.3]} 35... fxe5 {[%clk 0:00:04.6]} 36. Rxe5
{[%clk 0:00:57.8]} 36... Rxd6 {[%clk 0:00:05.1]} 37. Rxd6 {[%clk 0:00:56.5]}
37... Rxd6 {[%clk 0:00:06]} 38. Re2 {[%clk 0:00:57.4]} 38... Rd4 {[%clk
0:00:05.9]} 39. b3 {[%clk 0:00:57.6]} 39... Rd3 {[%clk 0:00:06.2]} 40. Kf2
{[%clk 0:00:57.4]} 40... g5 {[%clk 0:00:06.7]} 41. Re3 {[%clk 0:00:57]} 41...
Rd4 {[%clk 0:00:06.6]} 42. h3 {[%clk 0:00:55.5]} 42... h5 {[%clk 0:00:06.6]} 43.
Re5 {[%clk 0:00:53.4]} 43... Kf6 {[%clk 0:00:06.6]} 44. Re8 {[%clk 0:00:53.2]}
44... Rd2+ {[%clk 0:00:06.5]} 45. Re2 {[%clk 0:00:53]} 45... Rd4 {[%clk
0:00:06.3]} 46. Re8 {[%clk 0:00:52.5]} 46... h4 {[%clk 0:00:06.6]} 47. gxh4
{[%clk 0:00:49.7]} 47... gxh4 {[%clk 0:00:07.5]} 48. Ke3 {[%clk 0:00:40.2]}
48... Rd1 {[%clk 0:00:06.3]} 49. Ra8 {[%clk 0:00:38.9]} 49... Rh1 {[%clk
0:00:06.2]} 50. Rxa7 {[%clk 0:00:37.8]} 50... Rxh3+ {[%clk 0:00:06.7]} 51. Kf4
{[%clk 0:00:38.7]} 51... Rh2 {[%clk 0:00:06.2]} 52. Ra6 {[%clk 0:00:38.3]} 52...
Rf2+ {[%clk 0:00:04.6]} 53. Kg4 {[%clk 0:00:38.6]} 53... Ke5 {[%clk 0:00:04.8]}
54. Rxb6 {[%clk 0:00:37.4]} 54... Rxa2 {[%clk 0:00:05.4]} 55. Kxh4 {[%clk
0:00:37.4]} 55... Kd4 {[%clk 0:00:04.9]} 56. b4 {[%clk 0:00:35.8]} 56... Kxc4
{[%clk 0:00:04.1]} 57. bxc5 {[%clk 0:00:35.8]} 57... Kxc5 {[%clk 0:00:05]} 58.
Rg6 {[%clk 0:00:35.8]} 58... Ra4+ {[%clk 0:00:04.9]} 59. Rg4 {[%clk 0:00:35.7]}
59... Rxg4+ {[%clk 0:00:05.4]} 60. Kxg4 {[%clk 0:00:36.6]} 1/2-1/2

[Event "*** Titled Tuesday Blitz"]
[Site "Chess.com"]
[Date "2020.10.20"]
[Round "3"]
[White "chenxiaoyuer"]
[Black "Walter_White_Poland"]
[Result "1-0"]
[WhiteElo "2521"]
[BlackElo "2310"]
[TimeControl "180+1"]
[EndTime "10:29:36 PDT"]
[Termination "chenxiaoyuer won by resignation"]

1. e4 {[%clk 0:03:00.9]} 1... e5 {[%clk 0:02:58.4]} 2. Nf3 {[%clk 0:02:59.9]}
2... Nc6 {[%clk 0:02:58.3]} 3. Bb5 {[%clk 0:02:59.6]} 3... a6 {[%clk 0:02:57.8]}
4. Ba4 {[%clk 0:02:58.8]} 4... Nf6 {[%clk 0:02:57.9]} 5. d3 {[%clk 0:02:58.6]}
5... d6 {[%clk 0:02:57]} 6. c3 {[%clk 0:02:58.2]} 6... g6 {[%clk 0:02:57]} 7.
O-O {[%clk 0:02:57.9]} 7... Bg7 {[%clk 0:02:57.2]} 8. Nbd2 {[%clk 0:02:58.3]}
8... O-O {[%clk 0:02:57.1]} 9. Re1 {[%clk 0:02:58.4]} 9... Bd7 {[%clk
0:02:56.9]} 10. Nf1 {[%clk 0:02:57.6]} 10... Re8 {[%clk 0:02:56.6]} 11. Ng3
{[%clk 0:02:54.9]} 11... Qe7 {[%clk 0:02:54.7]} 12. h3 {[%clk 0:02:42.2]} 12...
Rad8 {[%clk 0:02:52.7]} 13. d4 {[%clk 0:02:34.2]} 13... Nb8 {[%clk 0:02:41.9]}
14. Bxd7 {[%clk 0:02:24.5]} 14... Rxd7 {[%clk 0:02:29.4]} 15. d5 {[%clk
0:02:19.8]} 15... h6 {[%clk 0:02:19.7]} 16. c4 {[%clk 0:02:17.4]} 16... Nh7
{[%clk 0:02:06.1]} 17. Be3 {[%clk 0:02:14.3]} 17... c5 {[%clk 0:01:40.2]} 18. a3
{[%clk 0:01:58.5]} 18... b5 {[%clk 0:01:24.6]} 19. b4 {[%clk 0:01:41.1]} 19...
cxb4 {[%clk 0:01:15.9]} 20. cxb5 {[%clk 0:01:39.4]} 20... axb5 {[%clk
0:01:09.2]} 21. axb4 {[%clk 0:01:38.1]} 21... Rb7 {[%clk 0:01:02.5]} 22. Nd2
{[%clk 0:01:23.7]} 22... Rc8 {[%clk 0:00:51.9]} 23. Nb3 {[%clk 0:01:21.8]} 23...
Rc3 {[%clk 0:00:29.6]} 24. Na5 {[%clk 0:01:15.4]} 24... Rbc7 {[%clk 0:00:28]}
25. Qe2 {[%clk 0:01:08.9]} 25... Qe8 {[%clk 0:00:25.8]} 26. Rec1 {[%clk
0:01:03.9]} 26... h5 {[%clk 0:00:22.7]} 27. Qd2 {[%clk 0:00:56.7]} 27... Rxc1+
{[%clk 0:00:22.3]} 28. Rxc1 {[%clk 0:00:57.6]} 28... Rxc1+ {[%clk 0:00:22.2]}
29. Qxc1 {[%clk 0:00:57]} 29... h4 {[%clk 0:00:22.6]} 30. Ne2 {[%clk 0:00:55.1]}
30... f5 {[%clk 0:00:22.7]} 31. Qc7 {[%clk 0:00:51]} 31... fxe4 {[%clk
0:00:21.6]} 32. Qxd6 {[%clk 0:00:47.4]} 32... Nf6 {[%clk 0:00:19.4]} 33. Nc3
{[%clk 0:00:42.7]} 33... Qc8 {[%clk 0:00:17]} 34. Qe6+ {[%clk 0:00:39.1]} 34...
Qxe6 {[%clk 0:00:16.5]} 35. dxe6 {[%clk 0:00:40]} 35... Kf8 {[%clk 0:00:15.7]}
36. Bc5+ {[%clk 0:00:38.1]} 36... Ke8 {[%clk 0:00:15.8]} 37. Nxb5 {[%clk
0:00:38.5]} 37... Nd5 {[%clk 0:00:13.5]} 38. Nd6+ {[%clk 0:00:33.8]} 38... Kd8
{[%clk 0:00:13.4]} 39. Nxe4 {[%clk 0:00:29.8]} 39... Kc7 {[%clk 0:00:10.5]} 40.
Bd6+ {[%clk 0:00:29.4]} 40... Kc8 {[%clk 0:00:09.6]} 41. e7 {[%clk 0:00:28.2]}
41... Nxe7 {[%clk 0:00:06.4]} 42. Bxe7 {[%clk 0:00:28]} 42... Nd7 {[%clk
0:00:06.9]} 43. Bc5 {[%clk 0:00:25.8]} 43... Kc7 {[%clk 0:00:07]} 44. Nc4 {[%clk
0:00:25.4]} 44... Kc6 {[%clk 0:00:07]} 45. f3 {[%clk 0:00:22.9]} 45... Kd5
{[%clk 0:00:07.1]} 46. Nb6+ {[%clk 0:00:22.2]} 46... Kc6 {[%clk 0:00:06.5]} 47.
Nxd7 {[%clk 0:00:22.1]} 47... Kxd7 {[%clk 0:00:07.4]} 48. b5 {[%clk 0:00:22.8]}
48... Kc7 {[%clk 0:00:07.3]} 49. Kf1 {[%clk 0:00:22.9]} 49... Bh6 {[%clk
0:00:07.8]} 50. Ke2 {[%clk 0:00:23.6]} 50... Bc1 {[%clk 0:00:08]} 51. Kd3 {[%clk
0:00:24.5]} 51... Bf4 {[%clk 0:00:07.4]} 52. Kc4 {[%clk 0:00:25.4]} 52... g5
{[%clk 0:00:07.8]} 53. Kd5 {[%clk 0:00:25.8]} 53... Bh2 {[%clk 0:00:07.1]} 54.
b6+ {[%clk 0:00:25.3]} 54... Kb7 {[%clk 0:00:06.3]} 55. Nd6+ {[%clk 0:00:25.5]}
55... Ka6 {[%clk 0:00:07.2]} 56. Kc6 {[%clk 0:00:25.5]} 56... Bg1 {[%clk
0:00:07]} 57. Bxg1 {[%clk 0:00:24.5]} 57... g4 {[%clk 0:00:06.2]} 58. hxg4
{[%clk 0:00:24.8]} 58... e4 {[%clk 0:00:06]} 59. fxe4 {[%clk 0:00:25]} 59... h3
{[%clk 0:00:06.9]} 60. gxh3 {[%clk 0:00:25.2]} 1-0

[Event "*** Titled Tuesday Blitz"]
[Site "Chess.com"]
[Date "2020.10.20"]
[Round "3"]
[White "Abdimalik_Abdisalimov"]
[Black "Makswolf200817"]
[Result "1-0"]
[WhiteElo "2750"]
[BlackElo "2441"]
[TimeControl "180+1"]
[EndTime "10:29:39 PDT"]
[Termination "Abdimalik_Abdisalimov won by resignation"]

1. d4 {[%clk 0:03:00.9]} 1... d5 {[%clk 0:02:59.7]} 2. c4 {[%clk 0:03:01.1]}
2... e6 {[%clk 0:02:59.8]} 3. Nc3 {[%clk 0:03:01.2]} 3... c6 {[%clk 0:03:00]} 4.
e4 {[%clk 0:03:01.2]} 4... dxe4 {[%clk 0:02:59.6]} 5. Nxe4 {[%clk 0:03:02.1]}
5... Bb4+ {[%clk 0:03:00]} 6. Bd2 {[%clk 0:03:02.6]} 6... Qxd4 {[%clk
0:03:00.5]} 7. Bxb4 {[%clk 0:03:02.5]} 7... Qxe4+ {[%clk 0:03:01.1]} 8. Ne2
{[%clk 0:03:03]} 8... Na6 {[%clk 0:02:59.6]} 9. Bf8 {[%clk 0:03:02.6]} 9... Qe5
{[%clk 0:02:48.5]} 10. Qd2 {[%clk 0:02:34.4]} 10... Bd7 {[%clk 0:02:32.4]} 11.
Bd6 {[%clk 0:02:31.6]} 11... Qe4 {[%clk 0:02:27.8]} 12. O-O-O {[%clk 0:02:23.1]}
12... O-O-O {[%clk 0:02:11]} 13. Nc3 {[%clk 0:02:14.2]} 13... Qf5 {[%clk
0:02:05.5]} 14. Bd3 {[%clk 0:02:03.6]} 14... Qa5 {[%clk 0:02:04.6]} 15. Kb1
{[%clk 0:01:53.4]} 15... Be8 {[%clk 0:01:50.3]} 16. Bf8 {[%clk 0:01:20.9]} 16...
Qe5 {[%clk 0:01:26.6]} 17. Rhe1 {[%clk 0:01:14.3]} 17... Qf6 {[%clk 0:01:26.1]}
18. Ne4 {[%clk 0:01:13.1]} 18... Qd4 {[%clk 0:01:18.1]} 19. Bc2 {[%clk
0:01:00.1]} 19... Qxd2 {[%clk 0:01:11.2]} 20. Nxd2 {[%clk 0:00:51.8]} 20... Bd7
{[%clk 0:00:48.3]} 21. Bxg7 {[%clk 0:00:50.5]} 21... Ne7 {[%clk 0:00:49.2]} 22.
Bxh8 {[%clk 0:00:49.4]} 22... Rxh8 {[%clk 0:00:50.1]} 23. Ne4 {[%clk 0:00:50.3]}
23... Kc7 {[%clk 0:00:45.4]} 24. Nf6 {[%clk 0:00:47.1]} 24... Bc8 {[%clk
0:00:45.3]} 25. Bxh7 {[%clk 0:00:45.8]} 25... Nc5 {[%clk 0:00:41.9]} 26. h3
{[%clk 0:00:42.7]} 26... a5 {[%clk 0:00:34.4]} 27. Bc2 {[%clk 0:00:37]} 27...
Rh6 {[%clk 0:00:33.5]} 28. Ng4 {[%clk 0:00:36.7]} 28... Rh8 {[%clk 0:00:32.8]}
29. b3 {[%clk 0:00:34.7]} 29... Na6 {[%clk 0:00:29.5]} 30. Kb2 {[%clk
0:00:34.5]} 30... Nb4 {[%clk 0:00:29.6]} 31. Bb1 {[%clk 0:00:34.9]} 31... Rg8
{[%clk 0:00:25.6]} 32. Rd2 {[%clk 0:00:31.3]} 32... f5 {[%clk 0:00:23.4]} 33.
Ne3 {[%clk 0:00:31.6]} 33... Ng6 {[%clk 0:00:22.9]} 34. g4 {[%clk 0:00:29.8]}
34... Nh4 {[%clk 0:00:19.8]} 35. Rdd1 {[%clk 0:00:22.7]} 35... f4 {[%clk
0:00:19.6]} 36. Nc2 {[%clk 0:00:21.8]} 36... Nf3 {[%clk 0:00:18]} 37. Re2 {[%clk
0:00:20.4]} 37... Na6 {[%clk 0:00:17.7]} 38. Ne1 {[%clk 0:00:20.2]} 38... Nh4
{[%clk 0:00:17.2]} 39. Nd3 {[%clk 0:00:19.5]} 39... Rf8 {[%clk 0:00:15.4]} 40.
Ne5 {[%clk 0:00:19.5]} 40... Nc5 {[%clk 0:00:14.9]} 41. Ng6 {[%clk 0:00:19.6]}
41... Nxg6 {[%clk 0:00:14.3]} 42. Bxg6 {[%clk 0:00:20.5]} 42... Rh8 {[%clk
0:00:15.2]} 43. Re5 {[%clk 0:00:15.9]} 43... Nd7 {[%clk 0:00:13.8]} 44. Rh5
{[%clk 0:00:16.2]} 44... Rg8 {[%clk 0:00:13.2]} 45. Bc2 {[%clk 0:00:14.2]} 45...
Nf6 {[%clk 0:00:12.2]} 46. Re5 {[%clk 0:00:14.3]} 46... Rh8 {[%clk 0:00:11.3]}
47. g5 {[%clk 0:00:11.5]} 47... Nd7 {[%clk 0:00:10]} 48. Rxe6 {[%clk 0:00:12]}
48... Rxh3 {[%clk 0:00:10]} 49. Re7 {[%clk 0:00:12.3]} 49... Kd8 {[%clk
0:00:09.7]} 50. Rexd7+ {[%clk 0:00:12.1]} 50... Bxd7 {[%clk 0:00:09.7]} 51.
Rxd7+ {[%clk 0:00:13]} 51... Kxd7 {[%clk 0:00:09.1]} 1-0